Cogmind - Beta 9.6 @@@ ROGUE MODE // 2020.08.29 @ 10:27:06 Player: Someone64 Result: Destroyed by as-88047 with Assembled F-torch Performance ------------- Evolutions (0) 0 Regions Visited (2) 400 Robots Destroyed (9) 45 Value Destroyed (16) 16 Prototype IDs (0) 0 Alien Tech Used (0) 0 Bonus (0) 0 TOTAL SCORE: 461 Bonus ------- None Cogmind --------- Core Integrity 0/250 Matter 300/300 Energy 99/100 System Corruption 4% Temperature Cool (22) Movement Hovering (80) Location -10/Mines Parts ------- > --- POWER (1) -------- (None) > --- PROPULSION (2) --- Combat Airjet > --- UTILITY (2) ------ Visual Processing Unit Signal Interpreter > --- WEAPON (2) ------- (None) > --- INVENTORY (4) ---- Light Treads Aluminum Leg Aluminum Leg Carbon-fiber Leg Peak State ------------ > --- POWER ------------ Ion Engine > --- PROPULSION ------- Combat Airjet > --- UTILITY ---------- Visual Processing Unit Signal Interpreter > --- WEAPON ----------- EM Pulse Gun Medium Laser > --- INVENTORY -------- Light Ion Engine Light Treads Aluminum Leg Aluminum Leg [Rating: 11] Favorites ----------- Power Ion Engine Engine Ion Engine Propulsion Aluminum Leg Leg Aluminum Leg Hover Unit Combat Airjet Utility Visual Processing Unit Storage Small Storage Unit Processor Visual Processing Unit Weapon Medium Laser Energy Gun Medium Laser Special Melee Weapon Datajack Build | -11 -10 -10 ------- Run | Scr Mat Min Slots Evolved . | . . . Power . | . . . Propulsion . | . . . Utility . | . . . Weapon . | . . . Parts Attached 15 | 7 3 5 Power 3 | 2 . 1 Engine 3 | 2 . 1 Core . | . . . Reactor . | . . . Propulsion 3 | 2 . 1 Treads . | . . . Leg 2 | 2 . . Wheel . | . . . Hover 1 | . . 1 Flight . | . . . Utility 4 | 1 3 . Device . | . . . Storage 2 | 1 1 . Processor 2 | . 2 . Hackware . | . . . Protection . | . . . Artifact . | . . . Weapon 5 | 2 . 3 Energy Gun 4 | 2 . 2 Energy Cannon . | . . . Ballistic Gun . | . . . Ballistic Cannon . | . . . Launcher . | . . . Special Weapon . | . . . Impact Weapon . | . . . Slashing Weapon . | . . . Piercing Weapon . | . . . Special Melee Weapon 1 | . . 1 Unidentified Prototypes . | . . . Parts Lost 6 | . . 6 Power 2 | . . 2 Propulsion . | . . . Utility . | . . . Weapon 4 | . . 4 Highest Loss Streak 4 | . . 4 Average Slot Usage (%) 87 | . 91 86 Engine 12 | . 14 11 Leg 20 | . 28 17 Hover 3 | . . 5 Storage 4 | . 15 . Processor 20 | . 3 28 Energy Gun 21 | . 28 18 Special Melee Weapon 3 | . . 5 Naked Turns . | . . . Heaviest Build 17 | 13 17 9 Greatest Support 22 | 20 20 22 Greatest Overweight (x) 2 | 2 . . Average Overweight (x) . | . . . Largest Inventory Capacity 8 | 6 8 4 Average Capacity 4 | 5 6 4 Most Carried 6 | 6 6 4 Average Carried 4 | 2 5 3 Final Capacity 6 | 6 4 4 Final Carried 6 | 6 4 4 Class Distribution -------------------- 100% | Mutant Dominant Class ---------------- Mutant | -10/Materials Mutant | -10/Mines Resources | -11 -10 -10 ----------- Run | Scr Mat Min Matter Collected 342 | 222 27 93 Remotely . | . . . Salvage Created 142 | . 27 115 Parts 5 | . 5 . Haulers Intercepted . | . . . Recyclers Shooed . | . . . Parts Field Recycled . | . . . Retrieved Matter . | . . . Parts Self-Destructed . | . . . Prevented . | . . . Kills | -11 -10 -10 ------- Run | Scr Mat Min Combat Hostiles Destroyed 8 | . . 8 Melee 1 | . . 1 Guns 7 | . . 7 Classes Destroyed 2 | . 1 1 Watcher 1 | . 1 . Assembled 8 | . . 8 Best Kill Streak 3 | . 1 3 Combat Bots Only 3 | . . 3 Max Kills in Single Turn 1 | . 1 1 Gunslinging . | . . . Exploded . | . . . Melee 1 | . . 1 Uniques/NPCs Destroyed . | . . . Combat | -11 -10 -10 -------- Run | Scr Mat Min Damage Taken 650 | . 101 549 Core 258 | . 11 247 Absorbed by Shields . | . . . Core Remaining (%) 100 | 100 . . Volleys Fired 28 | . 1 27 Largest 2 | . 2 2 Hottest 100 | . 100 90 Shots Fired 41 | . 2 39 Gun 41 | . 2 39 Cannon . | . . . Launcher . | . . . Special . | . . . Kinetic . | . . . Thermal 26 | . 2 24 Explosive . | . . . Electromagnetic 15 | . . 15 Robot Hit Streak 6 | . 1 6 Robot Miss Streak 4 | . . 4 Penetration Max . | . . . Secondary Targets 1 | . . 1 Max Gunslinging Chain 1 | . . 1 Shots Hit Robots 24 | . 1 23 Core Hits 17 | . 1 16 Critical Hits . | . . . Critical Kills . | . . . Critical Parts Destroyed . | . . . Melee Attacks 1 | . . 1 Impact . | . . . Slashing . | . . . Piercing . | . . . Sneak Attacks . | . . . Combat Hostiles . | . . . Follow-up Attacks . | . . . Damage Inflicted 306 | . 13 293 Guns 302 | . 13 289 Cannons . | . . . Explosions . | . . . Melee . | . . . Ramming 4 | . . 4 Kinetic . | . . . Thermal 203 | . 13 190 Explosive . | . . . Electromagnetic 99 | . . 99 Impact . | . . . Slashing . | . . . Piercing . | . . . Highest Corruption 4 | . . 4 Average Corruption 4 | . . 4 Corruption Purged . | . . . Effects 4 | . . 4 Message Errors 1 | . . 1 Matter Fused 1 | . . 1 Targeting Errors 2 | . . 2 Overload Shots . | . . . Overflow Damage . | . . . Projectiles . | . . . Explosions . | . . . Melee . | . . . Knockbacks . | . . . Impact . | . . . Kinetic . | . . . Secondary . | . . . Self-Inflicted Damage 2 | . . 2 Shots . | . . . Rammed 1 | . . 1 Targets Rammed 1 | . . 1 Kicked . | . . . Crushed . | . . . Highest Temperature 165 | . 39 165 Average Temperature 51 | . 20 53 Received Heat Transfer 94 | . 54 40 Siege Activations . | . . . Robots Corrupted . | . . . Combat Hostiles . | . . . Parts Fried . | . . . Impact Corruptions . | . . . Robots Melted . | . . . Combat Hostiles . | . . . Parts Melted . | . . . Heat Transferred 592 | . 37 555 Parts Sabotaged . | . . . Parts Stolen . | . . . Parts Stripped . | . . . Power Chain Reactions . | . . . Missiles Intercepted . | . . . Alert | -11 -10 -10 ------- Run | Scr Mat Min Peak Influence 30 | . 29 30 Average Influence 9 | . 8 11 Maximum Alert Level . | . . . Low Security (%) 100 | 100 100 100 Level 1 . | . . . Level 2 . | . . . Level 3 . | . . . Level 4 . | . . . Level 5 . | . . . High Security . | . . . Max Security . | . . . Squads Dispatched . | . . . Investigation . | . . . Extermination . | . . . Reinforcement . | . . . Assault . | . . . Garrison . | . . . Intercept . | . . . Construction Impeded . | . . . Haulers Reinforced . | . . . Stealth | -11 -10 -10 --------- Run | Scr Mat Min Distress Signals 2 | . . 2 Communications Jammed . | . . . Distress Signals . | . . . Times Spotted 16 | . 3 13 Peak Tracking Total 4 | . 2 4 Tactical Retreats 2 | . . 2 Traps | -11 -10 -10 ------- Run | Scr Mat Min Traps Triggered . | . . . Indirectly . | . . . Trap Hack Attempts . | . . . Triggered . | . . . Disarmed . | . . . Reprogrammed . | . . . Reused . | . . . Traps Extracted . | . . . Installed . | . . . Triggered . | . . . Machines | -11 -10 -10 ---------- Run | Scr Mat Min Machines Disabled . | . . . Max in Single Turn . | . . . Machines Sabotaged . | . . . Garrisons Compromised . | . . . Overloaded Fab Kills . | . . . Fab Network Shutdowns . | . . . Hacking | -11 -10 -10 --------- Run | Scr Mat Min Machines Accessed 1 | . 1 . Terminals 1 | . 1 . Fabricators . | . . . Repair Stations . | . . . Recycling Units . | . . . Scanalyzers . | . . . Garrison Access . | . . . Total Hacks 4 | . 4 . Successful 2 | . 2 . Failed 2 | . 2 . Catastrophic . | . . . Database Lockouts . | . . . Manual . | . . . Terminals 4 | . 4 . Fabricators . | . . . Repair Stations . | . . . Recycling Units . | . . . Scanalyzers . | . . . Garrison Access . | . . . Terminal Hacks 2 | . 2 . Branch Access Points 1 | . 1 . Emergency Access Points 1 | . 1 . Fabricator Hacks . | . . . Repair Station Hacks . | . . . Recycling Unit Hacks . | . . . Scanalyzer . | . . . Garrison Access Hacks . | . . . Unauthorized Hacks . | . . . Terminals . | . . . Fabricators . | . . . Repair Stations . | . . . Recycling Units . | . . . Scanalyzers . | . . . Garrison Access . | . . . Data Cores Recovered . | . . . Used . | . . . Hacking Detections 1 | . 1 . Full Trace Events . | . . . Feedback Events . | . . . Feedback Blocked . | . . . Robot Schematics Acquired . | . . . Robots Built . | . . . Matter . | . . . Time . | . . . Total Robot Build Rating . | . . . Part Schematics Acquired . | . . . Parts Built . | . . . Matter . | . . . Time . | . . . Total Part Build Rating . | . . . Parts Repaired . | . . . Time . | . . . Parts Recycled . | . . . Recycled Matter . | . . . Retrieved Matter . | . . . Retrieved Components . | . . . Parts Scanalyzed . | . . . Part Schematics Acquired . | . . . Parts Damaged . | . . . Bothacking | -11 -10 -10 ------------ Run | Scr Mat Min Used RIF Installer . | . . . Robots Hacked . | . . . Non-combat . | . . . Combat . | . . . Robot Hacks Applied . | . . . Relay Couplers Released . | . . . Robots Rewired . | . . . Allies Hacked . | . . . Hacks Repelled . | . . . Allies | -11 -10 -10 -------- Run | Scr Mat Min Total Allies . | . . . Largest Group . | . . . Highest-Rated Group . | . . . Highest-Rated Ally . | . . . Total Orders . | . . . Ally Attacks . | . . . Total Damage . | . . . Kills . | . . . Allies Corrupted . | . . . Allies Melted . | . . . Intel | -11 -10 -10 ------- Run | Scr Mat Min Robot Analysis Total . | . . . Derelict Logs Recovered . | . . . Drone Launches . | . . . Drone Recoveries . | . . . Exploration | -11 -10 -10 ------------- Run | Scr Mat Min Turns Passed 586 | 81 153 352 Spaces Moved 441 | 57 119 265 Core 11 | 11 . . Treads . | . . . Legs 313 | 46 119 148 Wheels . | . . . Hover 117 | . . 117 Flight . | . . . Fastest Speed 50 | 50 120 80 Average Speed 108 | 116 120 102 Slowest Speed 150 | 150 120 120 Overloaded Moves . | . . . Propulsion Burnouts . | . . . Robots Hopped . | . . . Cave-ins Triggered . | . . . Exploration Rate (%) 30 | 4 26 62 Regions Visited 2 Branch Regions 1 Pre-discovered Areas 1 | . . 1 Known Exits Taken 1 | . 1 . Unknown Exits Taken 1 | 1 . . Scrap Searched 1 | . . 1 Spaces Dug . | . . . Terrain Destroyed . | . . . Melee . | . . . Projectile . | . . . AOE . | . . . Actions | -11 -10 -10 --------- Run | Scr Mat Min Total 502 | 68 128 306 Wait 3 | . . 3 Move 439 | 56 118 265 Hop . | . . . Pick Up 7 | 5 1 1 Fast Attach 12 | 6 3 3 Attach 2 | . . 2 Detach 1 | . . 1 Swap 1 | 1 . . Drop 7 | . 5 2 Fire 28 | . 1 27 Melee 1 | . . 1 Ram 1 | . . 1 Kick . | . . . Crush . | . . . Escape Stasis . | . . . Rewire . | . . . Trap . | . . . Miscellaneous . | . . . Route ------- -11/Scrapyard -10/Materials -10/Mines History --------- Turn | Location | Event 4 | -11/Scrapyard | Discovered new exit (range 16) 82 | -11/Scrapyard | Entered Materials 169 | -10/Materials | Identified exit to Mines 235 | -10/Materials | Entered Mines 236 | -10/Mines | Assembled infested the area 295 | -10/Mines | Met a Derelict bent on vengeance 314 | -10/Mines | Build established: Mutant 507 | -10/Mines | Learned location of Storage (-8) 534 | -10/Mines | Core integrity fell below 50% 556 | -10/Mines | Core integrity fell below 20% 569 | -10/Mines | Lost 4 parts (1p3w) 587 | -10/Mines | Destroyed by as-88047 with Assembled F-torch Last Messages --------------- 00473_ System corrupted: Med. Laser targeting data glitched. 00479_ as-21426 destroyed. 00482_ Acquired 17 matter. 00507_ A derelict emerges from the shadows: "Are any of them following you? I'm here trying to lose some heat after our second raid on Storage failed. Whatever you do stay away from that place, they've tightened security following our previous successful raids." World map updated: -8/Storage. 00509_ IE-73X(g): "We scattered so the Unaware couldn't effectively use their advantage in numbers, and I suggest you do the same." 00509_ IE-73X(g) slips back into the shadows. 00518_ Med. Laser destroyed. 00520_ EM Pulse Gun destroyed. 00526_ Acquired Carbon-fiber Leg. 00526_ Lgt. Ion Engine destroyed. 00529_ Acquired Particle Gun. 00538_ Particle Gun destroyed. 00549_ O|# G9QN0QR9P MB9 JTUYC8 FWD0KVWH8KCFN 00568_ Slammed into as-58565. 00568_ as-58565 destroyed. Map ----- +----------------------------------------------------+ | ??????????????????????????????????????? | | ??????????????????????????????????????? | | ??????????????????????????????????????? | | ??????????????????????????????????????? | | ??????????????????????????????????????? | | ??????????????????????????????????????? | | ??????????????????????????????????????? | | ??????????????????????????????????????? | | ??????????????????????????????????????? | | ??????????????????????????????????????? | | ??????????????????????????????????????? | | ??????????????????????????????????????? | | ??????????????????????????????????????? | | ??????????????????????????????????????? | | ??????????????????????????????????????? | | ??????????????????????????????????????? | | ??=???????????????????????????????????? | | ? %#??????????????????????????????????? | | #%!#####??????????????#####???????????? | | # # ???????????????# ###?????????? | | %* ????? ?????????? ??????????? | | [% ?????*% ???????? ??????????? | | ?????"" ??????? ???????????? | | ?????"" #????? ??????? #??? | | ???????" ##??# #????? ##?? | | #????????????# %% ##@##### #?? | | #?????????????# #? | | % #?????????????## #? | | #??????????????## ## #### #?? | | #????????????????## #?#a#### #?? | | #??????????????????###??# #?? | | #??????????????##????????## ### #?? | | #?????????????? #?????????# #?????????? | | ##????????????? #?????????# #?????????? | | #????????????? #?????????# #?????????? | | #???????????? #?????????# #?????????? | | #???????????? ##????????# #?????????? | | #???????????? =%##???????# #?????????? | | ##???????????? ????????# #?????????? | | #???????????? ????????# #?????????? | | #####????????? ???????### ##########? | | ??# ##??????? ???###### #? | | ??# #??????? #???# #? | | ??# #??##### #???# #### #? | | ?## #??# #???# #??# """ """ #? | | ?# #??# ## ##???# #### """ """ #? | | ?# #??# ## #????# # """ """ #? | | ??# #### ## #???## =% #? | | ???# ## #???# ! """%""" #? | | #### #######!##### """ """ #? | +----------------------------------------------------+ Best States ------------- Heat Dissipation 25 Energy Generation 10 Energy Capacity 250 Matter Stores 300 Matter Capacity 300 Sight Range 18 Terrain Scan Density 10 Evasion (%) 49 Item Schematics ----------------- None Robot Schematics ------------------ None Fabricated ------------ Nothing Alien Tech Used ----------------- None Achievements -------------- None Challenges ------------ None Game ------ Seed PropulsionInsulatedSteel Manual? 0 Play Time 00:10:46 Cumulative 11.2 hours Start 2020.08.29 @ 10:20:20 End 2020.08.29 @ 10:27:06 Sessions 1 Manual Loads 0 Difficulty Rogue Special Mode None Game No. 32 Rogue 32 Adventurer 0 Explorer 0 Win Type - Total 0 Types 0/0/0/0/0/0/0 Lore% 9 Gallery% 24 Achievement% 19 Wizard Run 0 Options --------- ASCII 0 Keyboard 1 Movement Numpad Keybinds 0 Fullscreen 2 Font 16/Cog Map View 76x50 Tactical HUD 1 Map Filters NONE Filters NONE Steam 1 RUN: 49489c0b-0e14-45ec-9239-18c5e6abc27e